[Event "Early-Titled-Tuesday-Blitz-February-06-2024"]
[Site "Chess.com"]
[Date "2024.02.06"]
[Round "1"]
[White "jk13"]
[Black "eightbyeightchess"]
[Result "1-0"]
[WhiteElo "2674"]
[BlackElo "2360"]
[TimeControl "180+1"]
[EndTime "8:06:28 PST"]
[Termination "jk13 won by checkmate"]

1. e4 {[%clk 0:03:00.9]} 1... d5 {[%clk 0:02:56.1]} 2. exd5 {[%clk 0:03:00.6]}
2... Nf6 {[%clk 0:02:56.3]} 3. d4 {[%clk 0:02:59.4]} 3... Bg4 {[%clk 0:02:56.4]}
4. f3 {[%clk 0:02:56.8]} 4... Bf5 {[%clk 0:02:55.3]} 5. c4 {[%clk 0:02:53.9]}
5... c6 {[%clk 0:02:43]} 6. dxc6 {[%clk 0:02:42.3]} 6... Nxc6 {[%clk 0:02:40.7]}
7. d5 {[%clk 0:02:35.8]} 7... Ne5 {[%clk 0:02:36.7]} 8. Bf4 {[%clk 0:02:23.6]}
8... Ned7 {[%clk 0:02:28.4]} 9. Nc3 {[%clk 0:02:23]} 9... e5 {[%clk 0:02:20.3]}
10. Be3 {[%clk 0:02:14.5]} 10... Bd6 {[%clk 0:02:09.3]} 11. Bd3 {[%clk
0:02:13.9]} 11... Bg6 {[%clk 0:01:45.2]} 12. Nge2 {[%clk 0:02:11]} 12... a6
{[%clk 0:01:35.9]} 13. O-O {[%clk 0:02:10]} 13... Nc5 {[%clk 0:01:32.9]} 14. Bc2
{[%clk 0:02:02.2]} 14... a5 {[%clk 0:01:11.7]} 15. Ng3 {[%clk 0:01:59.4]} 15...
O-O {[%clk 0:01:06.3]} 16. Bxg6 {[%clk 0:01:57.4]} 16... hxg6 {[%clk 0:01:04.1]}
17. Nge4 {[%clk 0:01:54.2]} 17... Nfxe4 {[%clk 0:01:02.2]} 18. Nxe4 {[%clk
0:01:48.9]} 18... Nxe4 {[%clk 0:00:49.2]} 19. fxe4 {[%clk 0:01:49.8]} 19... Qh4
{[%clk 0:00:40.5]} 20. Qd3 {[%clk 0:01:45.8]} 20... f5 {[%clk 0:00:29.5]} 21. c5
{[%clk 0:01:29.3]} 21... fxe4 {[%clk 0:00:27.7]} 22. Qc4 {[%clk 0:01:27.6]}
22... Rxf1+ {[%clk 0:00:23.7]} 23. Rxf1 {[%clk 0:01:27.4]} 23... Bf8 {[%clk
0:00:23.1]} 24. d6+ {[%clk 0:01:26.5]} 24... Kh7 {[%clk 0:00:23.6]} 25. Qd5
{[%clk 0:01:19.7]} 25... Re8 {[%clk 0:00:15.5]} 26. Qxb7 {[%clk 0:01:19.2]}
26... Qg4 {[%clk 0:00:14.9]} 27. Qd5 {[%clk 0:01:13.6]} 27... Qe2 {[%clk
0:00:15.2]} 28. Qxe4 {[%clk 0:01:11.8]} 28... Qxb2 {[%clk 0:00:15.2]} 29. h3
{[%clk 0:01:08.5]} 29... Qxa2 {[%clk 0:00:15.6]} 30. d7 {[%clk 0:01:01.8]} 30...
Rd8 {[%clk 0:00:15.8]} 31. c6 {[%clk 0:01:02.5]} 31... Bd6 {[%clk 0:00:14.9]}
32. Bb6 {[%clk 0:01:00.8]} 32... Qg8 {[%clk 0:00:13.2]} 33. Qh4# {[%clk
0:00:59.4]} 1-0

[Event "Early-Titled-Tuesday-Blitz-February-06-2024"]
[Site "Chess.com"]
[Date "2024.02.06"]
[Round "1"]
[White "le_poisson"]
[Black "temiksmozg"]
[Result "1/2-1/2"]
[WhiteElo "2311"]
[BlackElo "2614"]
[TimeControl "180+1"]
[EndTime "8:06:29 PST"]
[Termination "Game drawn by repetition"]

1. e4 {[%clk 0:03:00.9]} 1... c5 {[%clk 0:02:58.6]} 2. Nf3 {[%clk 0:03:01.1]}
2... e6 {[%clk 0:02:58.6]} 3. d4 {[%clk 0:03:00.7]} 3... cxd4 {[%clk 0:02:59.5]}
4. Nxd4 {[%clk 0:03:01.4]} 4... Nf6 {[%clk 0:03:00.1]} 5. Nc3 {[%clk 0:03:01.1]}
5... Nc6 {[%clk 0:03:00.5]} 6. Nxc6 {[%clk 0:02:58.5]} 6... bxc6 {[%clk
0:03:01.4]} 7. e5 {[%clk 0:02:58.8]} 7... Nd5 {[%clk 0:03:01]} 8. Ne4 {[%clk
0:02:59.3]} 8... Qc7 {[%clk 0:03:01.2]} 9. f4 {[%clk 0:02:58.6]} 9... Qb6 {[%clk
0:03:01.6]} 10. c4 {[%clk 0:02:54.4]} 10... Bb4+ {[%clk 0:03:01.5]} 11. Ke2
{[%clk 0:02:43.9]} 11... f5 {[%clk 0:03:00.8]} 12. Ng5 {[%clk 0:02:34.9]} 12...
Ne7 {[%clk 0:02:34.1]} 13. Be3 {[%clk 0:02:30.4]} 13... Qb8 {[%clk 0:02:17.4]}
14. a3 {[%clk 0:02:23.6]} 14... Ba5 {[%clk 0:02:16.1]} 15. b4 {[%clk 0:02:23.6]}
15... Bc7 {[%clk 0:02:15.5]} 16. Kf2 {[%clk 0:02:13.6]} 16... h6 {[%clk
0:01:53.3]} 17. Qh5+ {[%clk 0:01:56.3]} 17... g6 {[%clk 0:01:46.2]} 18. Qh4
{[%clk 0:01:56.8]} 18... a5 {[%clk 0:01:28.5]} 19. Be2 {[%clk 0:01:38.4]} 19...
axb4 {[%clk 0:01:10.8]} 20. axb4 {[%clk 0:01:38.4]} 20... Rxa1 {[%clk
0:01:11.7]} 21. Rxa1 {[%clk 0:01:38.6]} 21... Qxb4 {[%clk 0:01:11.2]} 22. Ra8
{[%clk 0:01:10.4]} 22... Bb6 {[%clk 0:00:41.5]} 23. Nf7 {[%clk 0:00:42]} 23...
Bxe3+ {[%clk 0:00:32.7]} 24. Kxe3 {[%clk 0:00:42.4]} 24... Kxf7 {[%clk
0:00:25.2]} 25. Qf6+ {[%clk 0:00:41.4]} 25... Kg8 {[%clk 0:00:25.4]} 26. Rxc8+
{[%clk 0:00:40.9]} 26... Nxc8 {[%clk 0:00:18.7]} 27. Qxg6+ {[%clk 0:00:41.4]}
27... Kf8 {[%clk 0:00:17.7]} 28. Qf6+ {[%clk 0:00:41.3]} 28... Kg8 {[%clk
0:00:18.2]} 29. Qg6+ {[%clk 0:00:38.2]} 29... Kf8 {[%clk 0:00:16.4]} 30. Qf6+
{[%clk 0:00:38.7]} 30... Kg8 {[%clk 0:00:16.6]} 31. Qg6+ {[%clk 0:00:39.1]}
1/2-1/2

[Event "Early-Titled-Tuesday-Blitz-February-06-2024"]
[Site "Chess.com"]
[Date "2024.02.06"]
[Round "1"]
[White "GoValya"]
[Black "dennisodessa"]
[Result "0-1"]
[WhiteElo "2280"]
[BlackElo "2615"]
[TimeControl "180+1"]
[EndTime "8:06:29 PST"]
[Termination "dennisodessa won on time"]

1. d4 {[%clk 0:02:55.9]} 1... e6 {[%clk 0:02:59.5]} 2. g3 {[%clk 0:02:54.3]}
2... Nf6 {[%clk 0:02:57.5]} 3. Bg2 {[%clk 0:02:54.5]} 3... c5 {[%clk 0:02:58]}
4. Nf3 {[%clk 0:02:52.8]} 4... Nc6 {[%clk 0:02:51.8]} 5. c3 {[%clk 0:02:51.2]}
5... d5 {[%clk 0:02:50.5]} 6. O-O {[%clk 0:02:50.8]} 6... Be7 {[%clk 0:02:50.5]}
7. Nbd2 {[%clk 0:02:51.1]} 7... O-O {[%clk 0:02:50.6]} 8. a3 {[%clk 0:02:46]}
8... b6 {[%clk 0:02:45.7]} 9. Qc2 {[%clk 0:02:46]} 9... Ba6 {[%clk 0:02:42.2]}
10. Re1 {[%clk 0:02:42.2]} 10... cxd4 {[%clk 0:02:42.5]} 11. cxd4 {[%clk
0:02:35.1]} 11... Rc8 {[%clk 0:02:42.1]} 12. Qa4 {[%clk 0:02:30.9]} 12... Bb7
{[%clk 0:02:42.7]} 13. b4 {[%clk 0:02:22.3]} 13... Ne4 {[%clk 0:02:36.1]} 14.
Bb2 {[%clk 0:02:13]} 14... Bf6 {[%clk 0:02:36.2]} 15. e3 {[%clk 0:02:04.3]}
15... Nd6 {[%clk 0:02:32.5]} 16. Rac1 {[%clk 0:01:53.7]} 16... b5 {[%clk
0:02:31.4]} 17. Qb3 {[%clk 0:01:53.9]} 17... Nc4 {[%clk 0:02:31.7]} 18. Nxc4
{[%clk 0:01:42.7]} 18... dxc4 {[%clk 0:02:20.9]} 19. Qc2 {[%clk 0:01:28.1]}
19... a5 {[%clk 0:02:21.8]} 20. Bc3 {[%clk 0:01:27.3]} 20... axb4 {[%clk
0:02:19.5]} 21. axb4 {[%clk 0:01:27.9]} 21... Qe7 {[%clk 0:02:19.8]} 22. Rb1
{[%clk 0:01:26.6]} 22... Rfd8 {[%clk 0:02:16.1]} 23. Ne5 {[%clk 0:01:20.8]}
23... Nxe5 {[%clk 0:02:03]} 24. dxe5 {[%clk 0:01:17.2]} 24... Bxg2 {[%clk
0:02:03.9]} 25. Kxg2 {[%clk 0:01:18]} 25... Qb7+ {[%clk 0:02:03.9]} 26. e4
{[%clk 0:00:44]} 26... Be7 {[%clk 0:02:04.8]} 27. Rbd1 {[%clk 0:00:40.8]} 27...
g6 {[%clk 0:02:02.6]} 28. f4 {[%clk 0:00:28.5]} 28... Qa8 {[%clk 0:01:23.5]} 29.
Kg1 {[%clk 0:00:26.6]} 29... Qa3 {[%clk 0:01:18.6]} 30. Rb1 {[%clk 0:00:03.9]}
30... Rd3 {[%clk 0:01:15.9]} 31. Bd2 {[%clk 0:00:01.4]} 31... Rcd8 {[%clk
0:01:14.1]} 32. Re2 {[%clk 0:00:01.8]} 32... Qa7+ {[%clk 0:01:05.2]} 33. Kg2
{[%clk 0:00:01.5]} 33... Qd7 {[%clk 0:01:06.1]} 0-1

[Event "Early-Titled-Tuesday-Blitz-February-06-2024"]
[Site "Chess.com"]
[Date "2024.02.06"]
[Round "1"]
[White "mortngabriel"]
[Black "Rud_Makarian"]
[Result "0-1"]
[WhiteElo "2522"]
[BlackElo "3039"]
[TimeControl "180+1"]
[EndTime "8:06:30 PST"]
[Termination "Rud_Makarian won by resignation"]

1. d4 {[%clk 0:03:00.9]} 1... Nf6 {[%clk 0:02:58.9]} 2. Nf3 {[%clk 0:03:01]}
2... c5 {[%clk 0:02:58.8]} 3. d5 {[%clk 0:03:01.1]} 3... b5 {[%clk 0:02:58.5]}
4. Bg5 {[%clk 0:02:55.3]} 4... g6 {[%clk 0:02:58.2]} 5. a4 {[%clk 0:02:51.2]}
5... b4 {[%clk 0:02:58]} 6. e3 {[%clk 0:02:35.3]} 6... Bg7 {[%clk 0:02:57.9]} 7.
c3 {[%clk 0:02:34.2]} 7... Bb7 {[%clk 0:02:52.7]} 8. c4 {[%clk 0:02:24.6]} 8...
Ne4 {[%clk 0:02:50]} 9. Qc2 {[%clk 0:02:24.4]} 9... Nxg5 {[%clk 0:02:49.2]} 10.
Nxg5 {[%clk 0:02:25.3]} 10... O-O {[%clk 0:02:46.2]} 11. Bd3 {[%clk 0:02:22.3]}
11... e6 {[%clk 0:02:37.2]} 12. h4 {[%clk 0:02:19.7]} 12... exd5 {[%clk
0:02:29.5]} 13. Nxh7 {[%clk 0:02:07.6]} 13... Kxh7 {[%clk 0:02:29.2]} 14. h5
{[%clk 0:02:08.1]} 14... Kg8 {[%clk 0:02:23.7]} 15. hxg6 {[%clk 0:01:37.5]}
15... Qf6 {[%clk 0:02:16.3]} 16. gxf7+ {[%clk 0:01:30.9]} 16... Rxf7 {[%clk
0:02:16.7]} 17. Bg6 {[%clk 0:01:18.5]} 17... Re7 {[%clk 0:02:10.4]} 18. cxd5
{[%clk 0:00:57.4]} 18... Qxb2 {[%clk 0:01:56.3]} 19. Qxc5 {[%clk 0:00:52.2]}
19... Na6 {[%clk 0:01:16.2]} 20. Qxe7 {[%clk 0:00:33.5]} 20... Qc1+ {[%clk
0:01:16.4]} 21. Ke2 {[%clk 0:00:33.8]} 21... Qxh1 {[%clk 0:01:17.3]} 22. Nd2
{[%clk 0:00:25.2]} 22... Qh6 {[%clk 0:01:03.3]} 23. Bf7+ {[%clk 0:00:21.1]}
23... Kh8 {[%clk 0:01:03.6]} 24. Rg1 {[%clk 0:00:08.9]} 24... Rf8 {[%clk
0:01:02.1]} 25. g4 {[%clk 0:00:08.9]} 25... Bf6 {[%clk 0:00:42]} 26. g5 {[%clk
0:00:08.2]} 26... Bxe7 {[%clk 0:00:41.3]} 0-1

[Event "Early-Titled-Tuesday-Blitz-February-06-2024"]
[Site "Chess.com"]
[Date "2024.02.06"]
[Round "1"]
[White "Real_taiatai"]
[Black "vovachesss"]
[Result "1-0"]
[WhiteElo "2477"]
[BlackElo "2829"]
[TimeControl "180+1"]
[EndTime "8:06:32 PST"]
[Termination "Real_taiatai won by checkmate"]

1. d4 {[%clk 0:02:59.7]} 1... d6 {[%clk 0:02:55.3]} 2. c4 {[%clk 0:02:54.2]}
2... e5 {[%clk 0:02:54.8]} 3. d5 {[%clk 0:02:53.3]} 3... f5 {[%clk 0:02:44.3]}
4. Nc3 {[%clk 0:02:53]} 4... Nf6 {[%clk 0:02:44.4]} 5. e3 {[%clk 0:02:41.2]}
5... g6 {[%clk 0:02:39.7]} 6. Nf3 {[%clk 0:02:39.6]} 6... Bg7 {[%clk 0:02:40.1]}
7. Be2 {[%clk 0:02:36.5]} 7... O-O {[%clk 0:02:40.5]} 8. O-O {[%clk 0:02:36.9]}
8... a5 {[%clk 0:02:38.7]} 9. Rb1 {[%clk 0:02:36.3]} 9... Na6 {[%clk 0:02:31.4]}
10. b3 {[%clk 0:02:32.4]} 10... Nc5 {[%clk 0:02:31.5]} 11. Bb2 {[%clk
0:02:23.8]} 11... h6 {[%clk 0:02:22.6]} 12. a3 {[%clk 0:02:17.6]} 12... g5
{[%clk 0:02:20.4]} 13. b4 {[%clk 0:02:17.1]} 13... Nce4 {[%clk 0:01:49.6]} 14.
Nxe4 {[%clk 0:02:07.5]} 14... Nxe4 {[%clk 0:01:47.7]} 15. Nd2 {[%clk 0:02:07.1]}
15... Nxd2 {[%clk 0:01:27.4]} 16. Qxd2 {[%clk 0:02:08]} 16... f4 {[%clk
0:01:24.6]} 17. Bd3 {[%clk 0:02:01.8]} 17... f3 {[%clk 0:01:18.9]} 18. Be4
{[%clk 0:01:51.5]} 18... Bf5 {[%clk 0:00:39.3]} 19. Bxf5 {[%clk 0:01:45.6]}
19... Rxf5 {[%clk 0:00:40.2]} 20. Qc2 {[%clk 0:01:43.5]} 20... Qd7 {[%clk
0:00:37.7]} 21. Qe4 {[%clk 0:01:37.7]} 21... Raf8 {[%clk 0:00:33]} 22. c5 {[%clk
0:01:35]} 22... Rf4 {[%clk 0:00:06.8]} 23. exf4 {[%clk 0:01:18.4]} 23... Rxf4
{[%clk 0:00:07.7]} 24. Qg6 {[%clk 0:01:18.7]} 24... Qg4 {[%clk 0:00:07.6]} 25.
Qe6+ {[%clk 0:01:18.2]} 25... Qxe6 {[%clk 0:00:02.9]} 26. dxe6 {[%clk
0:01:19.1]} 26... Rg4 {[%clk 0:00:02.1]} 27. g3 {[%clk 0:01:19]} 27... axb4
{[%clk 0:00:02]} 28. axb4 {[%clk 0:01:14.4]} 28... Rxb4 {[%clk 0:00:02.9]} 29.
cxd6 {[%clk 0:01:13.4]} 29... cxd6 {[%clk 0:00:03.8]} 30. Ba3 {[%clk 0:01:13.5]}
30... Ra4 {[%clk 0:00:03.5]} 31. Bxd6 {[%clk 0:01:13.3]} 31... Ra6 {[%clk
0:00:04.4]} 32. Bc5 {[%clk 0:01:09.2]} 32... Rxe6 {[%clk 0:00:04.8]} 33. Rxb7
{[%clk 0:01:08.9]} 33... e4 {[%clk 0:00:04.9]} 34. Rd1 {[%clk 0:01:06.3]} 34...
Bf6 {[%clk 0:00:02.6]} 35. Rdd7 {[%clk 0:01:04.8]} 35... Rc6 {[%clk 0:00:03]}
36. Rb8+ {[%clk 0:01:03.5]} 36... Bd8 {[%clk 0:00:01.2]} 37. Rbxd8# {[%clk
0:01:03.1]} 1-0

[Event "Early-Titled-Tuesday-Blitz-February-06-2024"]
[Site "Chess.com"]
[Date "2024.02.06"]
[Round "1"]
[White "volkanyirik"]
[Black "ChessQueen"]
[Result "1-0"]
[WhiteElo "2453"]
[BlackElo "2708"]
[TimeControl "180+1"]
[EndTime "8:06:32 PST"]
[Termination "volkanyirik won by resignation"]

1. e4 {[%clk 0:02:59.3]} 1... c6 {[%clk 0:03:00]} 2. Nc3 {[%clk 0:03:00.1]} 2...
d5 {[%clk 0:02:59.9]} 3. d4 {[%clk 0:03:00.9]} 3... dxe4 {[%clk 0:02:59.9]} 4.
f3 {[%clk 0:03:00.7]} 4... Nf6 {[%clk 0:02:49.2]} 5. fxe4 {[%clk 0:02:59.9]}
5... e5 {[%clk 0:02:49.2]} 6. dxe5 {[%clk 0:03:00]} 6... Qxd1+ {[%clk
0:02:45.3]} 7. Nxd1 {[%clk 0:03:00.9]} 7... Nxe4 {[%clk 0:02:40.4]} 8. Nf3
{[%clk 0:02:59.7]} 8... h6 {[%clk 0:02:24.8]} 9. Be3 {[%clk 0:02:55.6]} 9... Be6
{[%clk 0:02:21.1]} 10. Nd4 {[%clk 0:02:51.4]} 10... Bg4 {[%clk 0:02:13.5]} 11.
Nf2 {[%clk 0:02:39.8]} 11... Nxf2 {[%clk 0:02:12.2]} 12. Bxf2 {[%clk 0:02:40.7]}
12... Nd7 {[%clk 0:02:11.5]} 13. h3 {[%clk 0:02:35.7]} 13... Bh5 {[%clk
0:02:09.5]} 14. e6 {[%clk 0:02:33.3]} 14... Nf6 {[%clk 0:02:01.1]} 15. Bc4
{[%clk 0:02:28.6]} 15... Nd5 {[%clk 0:01:45.9]} 16. O-O {[%clk 0:02:22.6]} 16...
O-O-O {[%clk 0:01:40.9]} 17. exf7 {[%clk 0:02:17.9]} 17... Bxf7 {[%clk
0:01:39.7]} 18. Bb3 {[%clk 0:02:06.9]} 18... Bc5 {[%clk 0:01:32.3]} 19. Nf5
{[%clk 0:02:05]} 19... Bxf2+ {[%clk 0:01:23.2]} 20. Rxf2 {[%clk 0:02:05.9]}
20... Rd7 {[%clk 0:01:15.5]} 21. Nxg7 {[%clk 0:01:59.8]} 21... Rg8 {[%clk
0:01:12.4]} 22. Nf5 {[%clk 0:01:59.3]} 22... Be6 {[%clk 0:01:07.6]} 23. Re1
{[%clk 0:01:50.7]} 23... Bxf5 {[%clk 0:00:47.6]} 24. Rxf5 {[%clk 0:01:49.4]}
24... Rg6 {[%clk 0:00:42.3]} 25. Bxd5 {[%clk 0:01:40.8]} 25... cxd5 {[%clk
0:00:40.6]} 26. Rd1 {[%clk 0:01:40.1]} 26... d4 {[%clk 0:00:39.2]} 27. Rd2
{[%clk 0:01:36.5]} 27... b6 {[%clk 0:00:38.2]} 28. Kh2 {[%clk 0:01:32.1]} 28...
Kc7 {[%clk 0:00:37.7]} 29. g4 {[%clk 0:01:32.1]} 29... Re6 {[%clk 0:00:37.5]}
30. Kg3 {[%clk 0:01:31.4]} 30... Re3+ {[%clk 0:00:37.5]} 31. Rf3 {[%clk
0:01:31.5]} 31... Re6 {[%clk 0:00:37.9]} 32. Rfd3 {[%clk 0:01:31.5]} 32... Red6
{[%clk 0:00:31.7]} 33. h4 {[%clk 0:01:22.7]} 33... Kc6 {[%clk 0:00:29.9]} 34. c3
{[%clk 0:01:21.4]} 34... dxc3 {[%clk 0:00:22.6]} 35. Rxd6+ {[%clk 0:01:21.1]}
35... Rxd6 {[%clk 0:00:23.5]} 36. Rxd6+ {[%clk 0:01:21]} 36... Kxd6 {[%clk
0:00:24.4]} 37. bxc3 {[%clk 0:01:21.3]} 37... Ke5 {[%clk 0:00:24.5]} 38. g5
{[%clk 0:01:15.4]} 38... hxg5 {[%clk 0:00:23.5]} 39. hxg5 {[%clk 0:01:16.3]}
39... Kf5 {[%clk 0:00:24]} 40. Kh4 {[%clk 0:01:16.6]} 40... Kg6 {[%clk
0:00:24.6]} 41. Kg4 {[%clk 0:01:16.7]} 41... b5 {[%clk 0:00:25.2]} 42. a3 {[%clk
0:01:15.3]} 42... a6 {[%clk 0:00:18.1]} 43. Kf4 {[%clk 0:01:14.7]} 43... a5
{[%clk 0:00:18.1]} 44. Kg4 {[%clk 0:01:14]} 44... Kg7 {[%clk 0:00:16.5]} 45. Kf5
{[%clk 0:01:14.4]} 45... Kf7 {[%clk 0:00:17.4]} 46. Ke5 {[%clk 0:01:11.8]} 46...
Kg6 {[%clk 0:00:18.3]} 47. Kd5 {[%clk 0:01:11.9]} 47... Kxg5 {[%clk 0:00:18.7]}
48. Kc5 {[%clk 0:01:12]} 1-0

[Event "Early-Titled-Tuesday-Blitz-February-06-2024"]
[Site "Chess.com"]
[Date "2024.02.06"]
[Round "1"]
[White "FGHSMN"]
[Black "Zarinur"]
[Result "1-0"]
[WhiteElo "2930"]
[BlackElo "2500"]
[TimeControl "180+1"]
[EndTime "8:06:33 PST"]
[Termination "FGHSMN won by resignation"]

1. b3 {[%clk 0:03:00.9]} 1... Nf6 {[%clk 0:02:56.1]} 2. Bb2 {[%clk 0:03:01.2]}
2... d5 {[%clk 0:02:55.3]} 3. Nf3 {[%clk 0:03:01]} 3... Bf5 {[%clk 0:02:51.3]}
4. Nh4 {[%clk 0:03:00.2]} 4... Bg6 {[%clk 0:02:47.5]} 5. Nxg6 {[%clk 0:02:59.2]}
5... hxg6 {[%clk 0:02:48.4]} 6. g3 {[%clk 0:02:58.2]} 6... e6 {[%clk 0:02:48.2]}
7. Bg2 {[%clk 0:02:57.8]} 7... Nbd7 {[%clk 0:02:48.7]} 8. c4 {[%clk 0:02:53.4]}
8... c6 {[%clk 0:02:46.5]} 9. d4 {[%clk 0:02:47.1]} 9... Be7 {[%clk 0:02:40.8]}
10. Nc3 {[%clk 0:02:45.3]} 10... Qa5 {[%clk 0:02:38.8]} 11. O-O {[%clk 0:02:38]}
11... g5 {[%clk 0:02:27.8]} 12. e3 {[%clk 0:02:31.2]} 12... g4 {[%clk
0:02:23.3]} 13. c5 {[%clk 0:02:18.2]} 13... Nf8 {[%clk 0:02:00.7]} 14. Rb1
{[%clk 0:02:12.7]} 14... N8h7 {[%clk 0:01:59]} 15. b4 {[%clk 0:02:12.1]} 15...
Qc7 {[%clk 0:01:48.9]} 16. e4 {[%clk 0:01:45.3]} 16... dxe4 {[%clk 0:01:23.1]}
17. Nxe4 {[%clk 0:01:46.2]} 17... Nxe4 {[%clk 0:01:03.3]} 18. Bxe4 {[%clk
0:01:47.1]} 18... Nf6 {[%clk 0:01:01.5]} 19. Bg2 {[%clk 0:01:45.9]} 19... Rh5
{[%clk 0:00:49.9]} 20. Ba1 {[%clk 0:01:18.5]} 20... a6 {[%clk 0:00:14.3]} 21. a4
{[%clk 0:01:16.3]} 21... Rd8 {[%clk 0:00:14.8]} 22. Qe2 {[%clk 0:01:10.7]} 22...
Kf8 {[%clk 0:00:04.7]} 23. b5 {[%clk 0:01:09.7]} 23... cxb5 {[%clk 0:00:03.4]}
24. axb5 {[%clk 0:01:10.6]} 24... b6 {[%clk 0:00:03.5]} 25. bxa6 {[%clk
0:01:08.8]} 25... bxc5 {[%clk 0:00:03.2]} 26. Rb7 {[%clk 0:01:06.7]} 26... Qa5
{[%clk 0:00:03.4]} 27. a7 {[%clk 0:01:04.2]} 27... cxd4 {[%clk 0:00:03.8]} 28.
Bxd4 {[%clk 0:01:05.1]} 28... Rxd4 {[%clk 0:00:02.3]} 29. Rb8+ {[%clk
0:01:05.1]} 29... Rd8 {[%clk 0:00:01.7]} 30. Rxd8+ {[%clk 0:01:04.3]} 30... Bxd8
{[%clk 0:00:01.5]} 31. a8=Q {[%clk 0:01:04.8]} 1-0

[Event "Early-Titled-Tuesday-Blitz-February-06-2024"]
[Site "Chess.com"]
[Date "2024.02.06"]
[Round "1"]
[White "ChessSwole"]
[Black "picturesquecheck"]
[Result "1-0"]
[WhiteElo "2702"]
[BlackElo "2384"]
[TimeControl "180+1"]
[EndTime "8:06:33 PST"]
[Termination "ChessSwole won by resignation"]

1. e4 {[%clk 0:02:58.3]} 1... c6 {[%clk 0:02:58.1]} 2. d4 {[%clk 0:02:57.6]}
2... d5 {[%clk 0:02:57.6]} 3. e5 {[%clk 0:02:58.1]} 3... Bf5 {[%clk 0:02:51.9]}
4. h4 {[%clk 0:02:58.1]} 4... h5 {[%clk 0:02:46.6]} 5. Bd3 {[%clk 0:02:58]} 5...
Bxd3 {[%clk 0:02:36.7]} 6. Qxd3 {[%clk 0:02:58.9]} 6... e6 {[%clk 0:02:37.3]} 7.
Bg5 {[%clk 0:02:57.8]} 7... Qa5+ {[%clk 0:02:34.8]} 8. Nd2 {[%clk 0:02:57.4]}
8... Ne7 {[%clk 0:02:34.1]} 9. Ne2 {[%clk 0:02:49.8]} 9... Nf5 {[%clk
0:02:33.8]} 10. O-O {[%clk 0:02:37.3]} 10... Nd7 {[%clk 0:02:18.7]} 11. Ng3
{[%clk 0:02:32.7]} 11... g6 {[%clk 0:02:10.9]} 12. Nxf5 {[%clk 0:02:26.4]} 12...
gxf5 {[%clk 0:02:11.8]} 13. c4 {[%clk 0:02:18.6]} 13... Qa6 {[%clk 0:02:09.1]}
14. Rfc1 {[%clk 0:02:13.5]} 14... Bg7 {[%clk 0:01:55.8]} 15. b4 {[%clk 0:02:07]}
15... Nf8 {[%clk 0:01:30.4]} 16. b5 {[%clk 0:02:04.1]} 16... Qa4 {[%clk
0:01:11.6]} 17. Rab1 {[%clk 0:01:53.2]} 17... Ng6 {[%clk 0:01:08.9]} 18. cxd5
{[%clk 0:01:24.5]} 18... cxd5 {[%clk 0:01:04.5]} 19. Rc7 {[%clk 0:01:24.5]}
19... Rb8 {[%clk 0:00:58.5]} 20. Nf1 {[%clk 0:01:10.9]} 20... O-O {[%clk
0:00:52]} 21. Ng3 {[%clk 0:01:10.3]} 21... Rfc8 {[%clk 0:00:36]} 22. Rbc1 {[%clk
0:01:06.8]} 22... Rxc7 {[%clk 0:00:32.5]} 23. Rxc7 {[%clk 0:01:07.7]} 23... Qa5
{[%clk 0:00:32.6]} 24. Rc1 {[%clk 0:01:00.7]} 24... Qxa2 {[%clk 0:00:19.1]} 25.
Nxh5 {[%clk 0:00:57.5]} 25... a6 {[%clk 0:00:19.6]} 26. b6 {[%clk 0:00:41.8]}
26... Qa5 {[%clk 0:00:13.5]} 27. Nxg7 {[%clk 0:00:38]} 27... Kxg7 {[%clk
0:00:14.4]} 28. h5 {[%clk 0:00:38.3]} 28... Nf8 {[%clk 0:00:14.4]} 29. Qg3
{[%clk 0:00:36]} 29... Kg8 {[%clk 0:00:11.1]} 30. Bf6+ {[%clk 0:00:35.3]} 1-0

[Event "Early-Titled-Tuesday-Blitz-February-06-2024"]
[Site "Chess.com"]
[Date "2024.02.06"]
[Round "1"]
[White "artooon"]
[Black "Noki102"]
[Result "1-0"]
[WhiteElo "3051"]
[BlackElo "2524"]
[TimeControl "180+1"]
[EndTime "8:06:34 PST"]
[Termination "artooon won on time"]

1. e4 {[%clk 0:03:00.9]} 1... e5 {[%clk 0:02:59.6]} 2. Nf3 {[%clk 0:03:01]} 2...
Nc6 {[%clk 0:03:00.1]} 3. Bc4 {[%clk 0:03:01.7]} 3... Nf6 {[%clk 0:03:00.1]} 4.
Ng5 {[%clk 0:03:01.7]} 4... d5 {[%clk 0:02:59.7]} 5. exd5 {[%clk 0:03:02.6]}
5... Na5 {[%clk 0:03:00]} 6. Bb5+ {[%clk 0:03:02.9]} 6... c6 {[%clk 0:03:00.3]}
7. dxc6 {[%clk 0:03:03.8]} 7... bxc6 {[%clk 0:03:00.7]} 8. Qf3 {[%clk
0:03:04.5]} 8... Be7 {[%clk 0:02:47.1]} 9. Bd3 {[%clk 0:03:04.5]} 9... O-O
{[%clk 0:02:42.5]} 10. Nc3 {[%clk 0:03:04.2]} 10... h6 {[%clk 0:02:37.7]} 11.
Nge4 {[%clk 0:03:04.5]} 11... Nd5 {[%clk 0:02:35.6]} 12. Ng3 {[%clk 0:03:04.6]}
12... Nf4 {[%clk 0:02:29.8]} 13. Bf5 {[%clk 0:03:04.5]} 13... Ba6 {[%clk
0:02:04.3]} 14. d3 {[%clk 0:03:04.3]} 14... g6 {[%clk 0:02:03.7]} 15. Be4 {[%clk
0:03:04.6]} 15... Qd6 {[%clk 0:01:43.5]} 16. Qd1 {[%clk 0:02:38.7]} 16... f5
{[%clk 0:01:22.4]} 17. Bf3 {[%clk 0:02:38.7]} 17... g5 {[%clk 0:01:14.6]} 18. h3
{[%clk 0:02:32]} 18... g4 {[%clk 0:01:03.1]} 19. hxg4 {[%clk 0:02:29.6]} 19...
fxg4 {[%clk 0:01:04]} 20. Be4 {[%clk 0:02:11.1]} 20... Bg5 {[%clk 0:00:43.2]}
21. Qxg4 {[%clk 0:02:05.6]} 21... Bc8 {[%clk 0:00:37.5]} 22. Qd1 {[%clk
0:02:04.5]} 22... Qd4 {[%clk 0:00:29.4]} 23. O-O {[%clk 0:01:39.1]} 23... Be6
{[%clk 0:00:21.5]} 24. Be3 {[%clk 0:01:33.4]} 24... Qd7 {[%clk 0:00:13.5]} 25.
Bf3 {[%clk 0:01:28]} 25... Nb7 {[%clk 0:00:09.6]} 26. Nce4 {[%clk 0:01:27.8]}
26... Nd6 {[%clk 0:00:09.1]} 27. Nc5 {[%clk 0:01:27.3]} 27... Qe7 {[%clk
0:00:08.4]} 28. Nxe6 {[%clk 0:01:27.9]} 28... Qxe6 {[%clk 0:00:09.3]} 29. c3
{[%clk 0:01:25.8]} 29... Rf6 {[%clk 0:00:08.3]} 30. Qb3 {[%clk 0:01:24.4]} 30...
Nd5 {[%clk 0:00:06.7]} 31. Bxg5 {[%clk 0:01:14.7]} 31... hxg5 {[%clk 0:00:07.6]}
32. Ne4 {[%clk 0:01:15.1]} 32... Nxe4 {[%clk 0:00:07.1]} 33. dxe4 {[%clk
0:01:10.7]} 33... Nf4 {[%clk 0:00:06.2]} 34. Rfd1 {[%clk 0:01:09.2]} 34... Qxb3
{[%clk 0:00:04.8]} 35. axb3 {[%clk 0:01:10.1]} 35... Rb8 {[%clk 0:00:03.4]} 36.
Rxa7 {[%clk 0:01:08.3]} 36... Rg6 {[%clk 0:00:02.9]} 37. Bg4 {[%clk 0:01:06.7]}
1-0